[Event "Titled Tuesday Blitz June 8 2021"]
[White "Kubicka, Anna"]
[Black "Vidit, Santosh Gujrathi"]
[WhiteFideId "1152254"]
[BlackFideId "5029465"]
[WhiteElo "2010"]
[BlackElo "2735"]
[Result "0-1"]
[Round "01"]
[TimeControl "180+1"]
[Date "2021.06.08"]
[WhiteClock "0:00:11"]
[BlackClock "0:00:28"]

1. e4 {[%clk 0:03:00]}  c5 {[%clk 0:02:53]} 2. Ne2 {[%clk 0:03:00]}  d6 {[%clk 0:02:53]} 3. g3 {[%clk 0:03:00]}  g6 {[%clk 0:02:53]} 4. Bg2 {[%clk 0:03:01]}  Bg7 {[%clk 0:02:53]} 5. O-O {[%clk 0:03:01]}  Nc6 {[%clk 0:02:54]} 6. c3 {[%clk 0:03:00]}  e5 {[%clk 0:02:54]} 7. d3 {[%clk 0:03:00]}  Nge7 {[%clk 0:02:53]} 8. Be3 {[%clk 0:03:00]}  O-O {[%clk 0:02:49]} 9. Nd2 {[%clk 0:02:59]}  Be6 {[%clk 0:02:42]} 10. f4 {[%clk 0:02:58]}  Qd7 {[%clk 0:02:37]} 11. Kh1 {[%clk 0:02:48]}  b6 {[%clk 0:02:31]} 12. Ng1 {[%clk 0:02:38]}  f5 {[%clk 0:02:27]} 13. Ngf3 {[%clk 0:02:36]}  Kh8 {[%clk 0:02:24]} 14. Ng5 {[%clk 0:02:35]}  Bg8 {[%clk 0:02:24]} 15. Qf3 {[%clk 0:02:20]}  h6 {[%clk 0:02:18]} 16. Nh3 {[%clk 0:02:17]}  Rae8 {[%clk 0:02:14]} 17. exf5 {[%clk 0:02:16]}  Bd5 {[%clk 0:02:11]} 18. Qe2 {[%clk 0:02:03]}  Bxg2+ {[%clk 0:02:06]} 19. Qxg2 {[%clk 0:02:03]}  Nxf5 {[%clk 0:02:05]} 20. Rae1 {[%clk 0:02:00]}  exf4 {[%clk 0:01:59]} 21. Bxf4 {[%clk 0:01:49]}  g5 {[%clk 0:01:59]} 22. Bxg5 {[%clk 0:01:38]}  hxg5 {[%clk 0:01:52]} 23. Nxg5 {[%clk 0:01:39]}  Bh6 {[%clk 0:01:42]} 24. Qh3 {[%clk 0:01:24]}  Rxe1 {[%clk 0:01:17]} 25. Rxe1 {[%clk 0:01:24]}  Kg8 {[%clk 0:01:15]} 26. Ne6 {[%clk 0:01:17]}  Rf6 {[%clk 0:01:14]} 27. Ne4 {[%clk 0:01:00]}  Rxe6 {[%clk 0:00:44]} 28. Qxf5 {[%clk 0:00:58]}  Qf7 {[%clk 0:00:45]} 29. Qg4+ {[%clk 0:00:49]}  Qg6 {[%clk 0:00:43]} 30. Qh3 {[%clk 0:00:40]}  d5 {[%clk 0:00:40]} 31. Nf6+ {[%clk 0:00:19]}  Rxf6 {[%clk 0:00:36]} 32. Qc8+ {[%clk 0:00:19]}  Bf8 {[%clk 0:00:31]} 33. Qd7 {[%clk 0:00:14]}  Ne7 {[%clk 0:00:30]} 34. Kg2 {[%clk 0:00:11]}  Qf5 {[%clk 0:00:28]} 0-1


[Site "https://www.chess.com"]

[Event "Titled Tuesday Blitz June 8 2021"]
[White "Kuzubov, Yuriy"]
[Black "Tokman, Ariel"]
[WhiteFideId "14112906"]
[BlackFideId "117420"]
[WhiteElo "2829"]
[BlackElo "2446"]
[Result "1-0"]
[Round "01"]
[TimeControl "180+1"]
[Date "2021.06.08"]
[WhiteClock "0:01:24"]
[BlackClock "0:01:29"]

1. Nf3 {[%clk 0:03:00]}  Nf6 {[%clk 0:02:58]} 2. c4 {[%clk 0:02:59]}  e6 {[%clk 0:02:54]} 3. Nc3 {[%clk 0:02:57]}  d5 {[%clk 0:02:51]} 4. e3 {[%clk 0:02:58]}  Be7 {[%clk 0:02:50]} 5. b3 {[%clk 0:02:51]}  O-O {[%clk 0:02:49]} 6. Bb2 {[%clk 0:02:52]}  a5 {[%clk 0:02:50]} 7. d4 {[%clk 0:02:48]}  c6 {[%clk 0:02:49]} 8. Bd3 {[%clk 0:02:44]}  Nbd7 {[%clk 0:02:44]} 9. O-O {[%clk 0:02:43]}  b6 {[%clk 0:02:42]} 10. e4 {[%clk 0:02:28]}  dxe4 {[%clk 0:02:43]} 11. Nxe4 {[%clk 0:02:28]}  Bb7 {[%clk 0:02:42]} 12. Qe2 {[%clk 0:01:49]}  a4 {[%clk 0:02:39]} 13. Neg5 {[%clk 0:01:35]}  axb3 {[%clk 0:01:46]} 14. axb3 {[%clk 0:01:30]}  h6 {[%clk 0:01:37]} 15. Nxe6 {[%clk 0:01:28]}  fxe6 {[%clk 0:01:37]} 16. Qxe6+ {[%clk 0:01:28]}  Kh8 {[%clk 0:01:38]} 17. Nh4 {[%clk 0:01:23]}  g5 {[%clk 0:01:29]} 18. Ng6+ {[%clk 0:01:23]}  Kg7 {[%clk 0:01:29]} 19. Nxe7 {[%clk 0:01:24]} 1-0


[Site "https://www.chess.com"]

[Event "Titled Tuesday Blitz June 8 2021"]
[White "Lehtosaari, Mauri"]
[Black "Guo, Arthur"]
[WhiteFideId "501999"]
[BlackFideId "30903114"]
[WhiteElo "2440"]
[BlackElo "2813"]
[Result "0-1"]
[Round "01"]
[TimeControl "180+1"]
[Date "2021.06.08"]
[WhiteClock "0:00:05"]
[BlackClock "0:00:08"]

1. d4 {[%clk 0:02:57]}  Nf6 {[%clk 0:02:58]} 2. Nf3 {[%clk 0:02:58]}  e6 {[%clk 0:02:59]} 3. Bg5 {[%clk 0:02:58]}  d5 {[%clk 0:03:00]} 4. Nbd2 {[%clk 0:02:58]}  Be7 {[%clk 0:03:00]} 5. e3 {[%clk 0:02:59]}  O-O {[%clk 0:03:00]} 6. Bd3 {[%clk 0:02:59]}  b6 {[%clk 0:03:00]} 7. O-O {[%clk 0:02:59]}  Ba6 {[%clk 0:03:01]} 8. Ne5 {[%clk 0:02:59]}  Bxd3 {[%clk 0:02:59]} 9. cxd3 {[%clk 0:03:00]}  c5 {[%clk 0:02:55]} 10. Ndf3 {[%clk 0:02:54]}  Nfd7 {[%clk 0:02:50]} 11. Bxe7 {[%clk 0:02:52]}  Qxe7 {[%clk 0:02:51]} 12. Rc1 {[%clk 0:02:45]}  f6 {[%clk 0:02:48]} 13. Nxd7 {[%clk 0:02:38]}  Nxd7 {[%clk 0:02:49]} 14. dxc5 {[%clk 0:02:37]}  bxc5 {[%clk 0:02:50]} 15. b3 {[%clk 0:02:36]}  e5 {[%clk 0:02:42]} 16. e4 {[%clk 0:02:36]}  Nb6 {[%clk 0:02:32]} 17. Qc2 {[%clk 0:02:30]}  Rac8 {[%clk 0:02:30]} 18. Nd2 {[%clk 0:02:30]}  Rfd8 {[%clk 0:02:27]} 19. Rfd1 {[%clk 0:02:23]}  Kh8 {[%clk 0:02:00]} 20. g3 {[%clk 0:02:23]}  d4 {[%clk 0:01:55]} 21. Nc4 {[%clk 0:02:21]}  Nd7 {[%clk 0:01:56]} 22. Rf1 {[%clk 0:02:16]}  Nf8 {[%clk 0:01:43]} 23. f4 {[%clk 0:02:16]}  exf4 {[%clk 0:01:44]} 24. gxf4 {[%clk 0:02:16]}  Ne6 {[%clk 0:01:44]} 25. Qg2 {[%clk 0:02:09]}  Rg8 {[%clk 0:01:42]} 26. Kh1 {[%clk 0:01:58]}  Rcf8 {[%clk 0:01:38]} 27. Rce1 {[%clk 0:01:46]}  Qd7 {[%clk 0:01:26]} 28. Qh3 {[%clk 0:01:35]}  Rf7 {[%clk 0:01:13]} 29. Re2 {[%clk 0:01:25]}  Rgf8 {[%clk 0:01:04]} 30. Ref2 {[%clk 0:01:21]}  Qc6 {[%clk 0:01:03]} 31. Qg2 {[%clk 0:01:19]}  Nc7 {[%clk 0:00:58]} 32. f5 {[%clk 0:01:16]}  Re7 {[%clk 0:00:55]} 33. Rf3 {[%clk 0:01:14]}  Ne8 {[%clk 0:00:54]} 34. Rh3 {[%clk 0:01:14]}  Nd6 {[%clk 0:00:45]} 35. Nxd6 {[%clk 0:01:11]}  Qxd6 {[%clk 0:00:46]} 36. Qg6 {[%clk 0:01:08]}  h6 {[%clk 0:00:42]} 37. Rg1 {[%clk 0:01:02]}  Qf4 {[%clk 0:00:42]} 38. Qg2 {[%clk 0:00:39]}  a5 {[%clk 0:00:33]} 39. Rf3 {[%clk 0:00:32]}  Qd6 {[%clk 0:00:32]} 40. Rh3 {[%clk 0:00:32]}  a4 {[%clk 0:00:30]} 41. bxa4 {[%clk 0:00:32]}  Ra7 {[%clk 0:00:30]} 42. Qg6 {[%clk 0:00:27]}  Qf4 {[%clk 0:00:30]} 43. Qg2 {[%clk 0:00:22]}  Rff7 {[%clk 0:00:22]} 44. Rf3 {[%clk 0:00:19]}  Qb8 {[%clk 0:00:22]} 45. Rh3 {[%clk 0:00:19]}  Qf8 {[%clk 0:00:23]} 46. Qc2 {[%clk 0:00:15]}  Rfc7 {[%clk 0:00:19]} 47. Rhg3 {[%clk 0:00:15]}  Qa8 {[%clk 0:00:18]} 48. Qg2 {[%clk 0:00:12]}  Qg8 {[%clk 0:00:16]} 49. Qc2 {[%clk 0:00:12]}  c4 {[%clk 0:00:15]} 50. dxc4 {[%clk 0:00:10]}  Qxc4 {[%clk 0:00:15]} 51. Qg2 {[%clk 0:00:10]}  Qf7 {[%clk 0:00:15]} 52. Rg6 {[%clk 0:00:10]}  Rd7 {[%clk 0:00:14]} 53. Qd2 {[%clk 0:00:10]}  Qf8 {[%clk 0:00:13]} 54. a5 {[%clk 0:00:09]}  d3 {[%clk 0:00:13]} 55. R6g3 {[%clk 0:00:09]}  Qa8 {[%clk 0:00:12]} 56. Re1 {[%clk 0:00:08]}  Qd8 {[%clk 0:00:11]} 57. Ree3 {[%clk 0:00:07]}  Qe7 {[%clk 0:00:09]} 58. Rxd3 {[%clk 0:00:07]}  Qxe4+ {[%clk 0:00:09]} 59. Kg1 {[%clk 0:00:07]}  Qxf5 {[%clk 0:00:08]} 60. Rgf3 {[%clk 0:00:06]}  Qxf3 {[%clk 0:00:07]} 61. Rxd7 {[%clk 0:00:05]}  Qg4+ {[%clk 0:00:08]} 0-1


[Site "https://www.chess.com"]

[Event "Titled Tuesday Blitz June 8 2021"]
[White "Loy, Konstantin"]
[Black "Seo, Jung Min"]
[WhiteFideId "14122499"]
[BlackFideId "1734687"]
[WhiteElo "2084"]
[BlackElo "2486"]
[Result "1/2-1/2"]
[Round "01"]
[TimeControl "180+1"]
[Date "2021.06.08"]
[WhiteClock "0:00:09"]
[BlackClock "0:01:02"]

1. e4 {[%clk 0:02:57]}  e5 {[%clk 0:03:00]} 2. Nf3 {[%clk 0:02:55]}  Nf6 {[%clk 0:03:00]} 3. Nxe5 {[%clk 0:02:54]}  d6 {[%clk 0:03:00]} 4. Nf3 {[%clk 0:02:54]}  Nxe4 {[%clk 0:03:00]} 5. d4 {[%clk 0:02:55]}  d5 {[%clk 0:03:00]} 6. Bd3 {[%clk 0:02:52]}  Nc6 {[%clk 0:03:00]} 7. O-O {[%clk 0:02:53]}  Be7 {[%clk 0:03:00]} 8. Re1 {[%clk 0:02:53]}  O-O {[%clk 0:03:00]} 9. c4 {[%clk 0:02:53]}  Nb4 {[%clk 0:02:57]} 10. cxd5 {[%clk 0:02:23]}  Nxd3 {[%clk 0:02:56]} 11. Qxd3 {[%clk 0:02:24]}  Nf6 {[%clk 0:02:56]} 12. Nc3 {[%clk 0:02:21]}  h6 {[%clk 0:02:52]} 13. Bf4 {[%clk 0:02:18]}  Re8 {[%clk 0:02:47]} 14. Rac1 {[%clk 0:02:10]}  Bd7 {[%clk 0:02:40]} 15. Ne5 {[%clk 0:01:56]}  Bd6 {[%clk 0:02:39]} 16. h3 {[%clk 0:01:45]}  Rc8 {[%clk 0:02:35]} 17. a3 {[%clk 0:01:39]}  a6 {[%clk 0:02:35]} 18. Qf3 {[%clk 0:01:35]}  Re7 {[%clk 0:02:30]} 19. Ne4 {[%clk 0:01:19]}  Nxe4 {[%clk 0:02:25]} 20. Rxe4 {[%clk 0:01:17]}  Bf5 {[%clk 0:02:18]} 21. Re3 {[%clk 0:01:10]}  Bh7 {[%clk 0:02:16]} 22. Rce1 {[%clk 0:01:05]}  Qf8 {[%clk 0:02:12]} 23. Nc4 {[%clk 0:01:00]}  Rxe3 {[%clk 0:02:11]} 24. Rxe3 {[%clk 0:00:55]}  Bxf4 {[%clk 0:02:06]} 25. Qxf4 {[%clk 0:00:55]}  Qd8 {[%clk 0:02:04]} 26. d6 {[%clk 0:00:48]}  Bg6 {[%clk 0:02:04]} 27. dxc7 {[%clk 0:00:33]}  Rxc7 {[%clk 0:01:56]} 28. Ne5 {[%clk 0:00:25]}  Re7 {[%clk 0:01:33]} 29. Nxg6 {[%clk 0:00:24]}  fxg6 {[%clk 0:01:33]} 30. Rxe7 {[%clk 0:00:23]}  Qxe7 {[%clk 0:01:33]} 31. Qe5 {[%clk 0:00:23]}  Qd7 {[%clk 0:01:30]} 32. d5 {[%clk 0:00:23]}  Kf7 {[%clk 0:01:30]} 33. d6 {[%clk 0:00:23]}  Qe6 {[%clk 0:01:27]} 34. Qf4+ {[%clk 0:00:19]}  Ke8 {[%clk 0:01:25]} 35. g4 {[%clk 0:00:17]}  Kd7 {[%clk 0:01:23]} 36. Qf8 {[%clk 0:00:15]}  Qe1+ {[%clk 0:01:14]} 37. Kg2 {[%clk 0:00:15]}  Qe4+ {[%clk 0:01:14]} 38. Kg3 {[%clk 0:00:16]}  Qe5+ {[%clk 0:01:13]} 39. Kf3 {[%clk 0:00:11]}  Qd5+ {[%clk 0:01:12]} 40. Ke3 {[%clk 0:00:09]}  Qe5+ {[%clk 0:01:11]} 41. Kf3 {[%clk 0:00:09]}  Qd5+ {[%clk 0:01:11]} 42. Ke2 {[%clk 0:00:09]}  Qe4+ {[%clk 0:01:08]} 43. Kd2 {[%clk 0:00:08]}  Qd4+ {[%clk 0:01:08]} 44. Kc2 {[%clk 0:00:09]}  Qc4+ {[%clk 0:01:07]} 45. Kd2 {[%clk 0:00:08]}  Qd4+ {[%clk 0:01:06]} 46. Kc1 {[%clk 0:00:08]}  Qc4+ {[%clk 0:01:06]} 47. Kb1 {[%clk 0:00:08]}  Qd3+ {[%clk 0:01:04]} 48. Ka2 {[%clk 0:00:09]}  Qd5+ {[%clk 0:01:04]} 49. Kb1 {[%clk 0:00:08]}  Qd1+ {[%clk 0:01:04]} 50. Ka2 {[%clk 0:00:09]}  Qd5+ {[%clk 0:01:03]} 51. Kb1 {[%clk 0:00:09]}  Qd1+ {[%clk 0:01:03]} 52. Ka2 {[%clk 0:00:09]}  Qd5+ {[%clk 0:01:02]} 1/2-1/2


[Site "https://www.chess.com"]

[Event "Titled Tuesday Blitz June 8 2021"]
[White "Mazur, Stefan"]
[Black "Demchenko, Anton"]
[WhiteFideId "14909332"]
[BlackFideId "4160258"]
[WhiteElo "2452"]
[BlackElo "2844"]
[Result "0-1"]
[Round "01"]
[TimeControl "180+1"]
[Date "2021.06.08"]
[WhiteClock "0:00:02"]
[BlackClock "0:01:20"]

1. e4 {[%clk 0:02:56]}  c5 {[%clk 0:02:57]} 2. Nf3 {[%clk 0:02:55]}  d6 {[%clk 0:02:57]} 3. d4 {[%clk 0:02:55]}  cxd4 {[%clk 0:02:57]} 4. Nxd4 {[%clk 0:02:55]}  Nf6 {[%clk 0:02:58]} 5. Nc3 {[%clk 0:02:56]}  Nc6 {[%clk 0:02:58]} 6. Bg5 {[%clk 0:02:55]}  e6 {[%clk 0:02:58]} 7. Qd2 {[%clk 0:02:55]}  a6 {[%clk 0:02:58]} 8. O-O-O {[%clk 0:02:53]}  Bd7 {[%clk 0:02:58]} 9. f4 {[%clk 0:02:51]}  Be7 {[%clk 0:02:58]} 10. Nf3 {[%clk 0:02:48]}  b5 {[%clk 0:02:56]} 11. Bxf6 {[%clk 0:02:28]}  gxf6 {[%clk 0:02:56]} 12. Kb1 {[%clk 0:02:13]}  b4 {[%clk 0:02:54]} 13. Ne2 {[%clk 0:02:12]}  h5 {[%clk 0:02:54]} 14. Ned4 {[%clk 0:02:06]}  Qb6 {[%clk 0:02:48]} 15. Nxc6 {[%clk 0:01:58]}  Bxc6 {[%clk 0:02:48]} 16. Bd3 {[%clk 0:01:58]}  a5 {[%clk 0:02:47]} 17. f5 {[%clk 0:01:28]}  e5 {[%clk 0:02:47]} 18. Qe2 {[%clk 0:01:06]}  a4 {[%clk 0:02:38]} 19. Bc4 {[%clk 0:01:05]}  a3 {[%clk 0:02:37]} 20. b3 {[%clk 0:01:05]}  Rc8 {[%clk 0:02:35]} 21. Rd2 {[%clk 0:01:02]}  Qc5 {[%clk 0:02:25]} 22. Rhd1 {[%clk 0:01:00]}  Bf8 {[%clk 0:01:59]} 23. Rd5 {[%clk 0:00:24]}  Bxd5 {[%clk 0:01:49]} 24. Rxd5 {[%clk 0:00:23]}  Qa7 {[%clk 0:01:40]} 25. Rb5 {[%clk 0:00:11]}  Be7 {[%clk 0:01:37]} 26. Bd5 {[%clk 0:00:11]}  Kf8 {[%clk 0:01:34]} 27. Rb7 {[%clk 0:00:07]}  Qc5 {[%clk 0:01:34]} 28. Bc4 {[%clk 0:00:06]}  d5 {[%clk 0:01:29]} 29. exd5 {[%clk 0:00:05]}  Bd6 {[%clk 0:01:27]} 30. Rb5 {[%clk 0:00:05]}  Qc7 {[%clk 0:01:27]} 31. Qe4 {[%clk 0:00:04]}  Rg8 {[%clk 0:01:23]} 32. Nh4 {[%clk 0:00:02]}  Rg4 {[%clk 0:01:22]} 33. Qe2 {[%clk 0:00:02]}  Rxh4 {[%clk 0:01:20]} 0-1


[Site "https://www.chess.com"]

[Event "Titled Tuesday Blitz June 8 2021"]
[White "Meissner, Felix"]
[Black "Pultinevicius, Paulius"]
[WhiteFideId "24671827"]
[BlackFideId "12809390"]
[WhiteElo "2390"]
[BlackElo "2452"]
[Result "0-1"]
[Round "01"]
[TimeControl "180+1"]
[Date "2021.06.08"]
[WhiteClock "0:00:11"]
[BlackClock "0:00:14"]

1. e4 {[%clk 0:03:00]}  c6 {[%clk 0:02:53]} 2. Nc3 {[%clk 0:03:00]}  d5 {[%clk 0:02:53]} 3. Qe2 {[%clk 0:03:01]}  d4 {[%clk 0:02:41]} 4. Nd1 {[%clk 0:02:59]}  e5 {[%clk 0:02:42]} 5. d3 {[%clk 0:02:59]}  Bd6 {[%clk 0:02:40]} 6. g3 {[%clk 0:02:59]}  c5 {[%clk 0:02:41]} 7. f4 {[%clk 0:02:58]}  Nc6 {[%clk 0:02:41]} 8. Nf3 {[%clk 0:02:58]}  Nge7 {[%clk 0:02:42]} 9. f5 {[%clk 0:02:58]}  b5 {[%clk 0:02:06]} 10. Nf2 {[%clk 0:02:54]}  a5 {[%clk 0:02:04]} 11. g4 {[%clk 0:02:51]}  Ba6 {[%clk 0:01:54]} 12. g5 {[%clk 0:02:51]}  c4 {[%clk 0:01:53]} 13. a3 {[%clk 0:02:50]}  Rc8 {[%clk 0:01:47]} 14. f6 {[%clk 0:02:44]}  gxf6 {[%clk 0:01:43]} 15. Ng4 {[%clk 0:02:44]}  Ng8 {[%clk 0:01:42]} 16. gxf6 {[%clk 0:02:36]}  h5 {[%clk 0:01:41]} 17. Nf2 {[%clk 0:02:33]}  Nxf6 {[%clk 0:01:42]} 18. Bg5 {[%clk 0:02:32]}  Be7 {[%clk 0:01:42]} 19. Nh4 {[%clk 0:02:32]}  Nd7 {[%clk 0:01:34]} 20. Bxe7 {[%clk 0:02:25]}  Nxe7 {[%clk 0:01:35]} 21. Rg1 {[%clk 0:02:23]}  Nc5 {[%clk 0:01:34]} 22. Rg5 {[%clk 0:02:13]}  Nc6 {[%clk 0:01:29]} 23. Rxh5 {[%clk 0:02:11]}  Rg8 {[%clk 0:01:19]} 24. Ng4 {[%clk 0:01:57]}  cxd3 {[%clk 0:01:15]} 25. cxd3 {[%clk 0:01:54]}  b4 {[%clk 0:01:07]} 26. Qf3 {[%clk 0:01:50]}  bxa3 {[%clk 0:00:57]} 27. Nf6+ {[%clk 0:01:40]}  Kf8 {[%clk 0:00:55]} 28. Nxg8 {[%clk 0:01:11]}  axb2 {[%clk 0:00:54]} 29. Rb1 {[%clk 0:01:03]}  Nb4 {[%clk 0:00:54]} 30. Ng6+ {[%clk 0:00:59]}  Kxg8 {[%clk 0:00:35]} 31. Rh8+ {[%clk 0:00:54]}  Kg7 {[%clk 0:00:35]} 32. Rxd8 {[%clk 0:00:44]}  Ncxd3+ {[%clk 0:00:35]} 33. Bxd3 {[%clk 0:00:36]}  Nxd3+ {[%clk 0:00:33]} 34. Qxd3 {[%clk 0:00:20]}  Bxd3 {[%clk 0:00:30]} 35. Rxc8 {[%clk 0:00:18]}  Bxb1 {[%clk 0:00:30]} 36. Nxe5 {[%clk 0:00:16]}  Bxe4 {[%clk 0:00:18]} 37. Rb8 {[%clk 0:00:16]}  b1=Q+ {[%clk 0:00:19]} 38. Rxb1 {[%clk 0:00:16]}  Bxb1 {[%clk 0:00:20]} 39. Nc6 {[%clk 0:00:16]}  a4 {[%clk 0:00:19]} 40. Nxd4 {[%clk 0:00:16]}  Kf6 {[%clk 0:00:16]} 41. Kd2 {[%clk 0:00:16]}  Ke5 {[%clk 0:00:16]} 42. Ke3 {[%clk 0:00:13]}  a3 {[%clk 0:00:14]} 43. h4 {[%clk 0:00:13]}  a2 {[%clk 0:00:14]} 44. Nb3 {[%clk 0:00:13]}  Bg6 {[%clk 0:00:11]} 45. Kd2 {[%clk 0:00:10]}  f5 {[%clk 0:00:12]} 46. Kc3 {[%clk 0:00:10]}  Bf7 {[%clk 0:00:12]} 47. Na1 {[%clk 0:00:09]}  f4 {[%clk 0:00:12]} 48. Kd3 {[%clk 0:00:09]}  Kf5 {[%clk 0:00:12]} 49. Ke2 {[%clk 0:00:07]}  Kg4 {[%clk 0:00:13]} 50. Kf2 {[%clk 0:00:07]}  Kxh4 {[%clk 0:00:13]} 51. Kf3 {[%clk 0:00:07]}  Kg5 {[%clk 0:00:14]} 52. Kf2 {[%clk 0:00:08]}  Kg4 {[%clk 0:00:14]} 53. Nc2 {[%clk 0:00:09]}  Bb3 {[%clk 0:00:13]} 54. Na1 {[%clk 0:00:10]}  Ba4 {[%clk 0:00:12]} 55. Kg2 {[%clk 0:00:09]}  f3+ {[%clk 0:00:13]} 56. Kf2 {[%clk 0:00:10]}  Kf4 {[%clk 0:00:14]} 57. Kf1 {[%clk 0:00:10]}  Kg3 {[%clk 0:00:14]} 58. Ke1 {[%clk 0:00:11]} 0-1


[Site "https://www.chess.com"]

[Event "Titled Tuesday Blitz June 8 2021"]
[White "Navalgund, Niranjan"]
[Black "Jones, Gawain C B"]
[WhiteFideId "5030854"]
[BlackFideId "409561"]
[WhiteElo "2471"]
[BlackElo "2873"]
[Result "0-1"]
[Round "01"]
[TimeControl "180+1"]
[Date "2021.06.08"]
[WhiteClock "0:02:07"]
[BlackClock "0:02:08"]

1. e4 {[%clk 0:02:57]}  e5 {[%clk 0:02:59]} 2. Nf3 {[%clk 0:02:57]}  Nc6 {[%clk 0:03:00]} 3. Nc3 {[%clk 0:02:56]}  g6 {[%clk 0:02:58]} 4. d4 {[%clk 0:02:56]}  exd4 {[%clk 0:02:58]} 5. Nxd4 {[%clk 0:02:57]}  Bg7 {[%clk 0:02:59]} 6. Be3 {[%clk 0:02:56]}  Nf6 {[%clk 0:02:57]} 7. Nxc6 {[%clk 0:02:55]}  dxc6 {[%clk 0:02:53]} 8. Qxd8+ {[%clk 0:02:54]}  Kxd8 {[%clk 0:02:54]} 9. O-O-O {[%clk 0:02:54]}  Ke8 {[%clk 0:02:53]} 10. f3 {[%clk 0:02:54]}  Be6 {[%clk 0:02:53]} 11. g4 {[%clk 0:02:51]}  h5 {[%clk 0:02:52]} 12. g5 {[%clk 0:02:50]}  Nd7 {[%clk 0:02:52]} 13. Bd4 {[%clk 0:02:42]}  Bxd4 {[%clk 0:02:51]} 14. Rxd4 {[%clk 0:02:43]}  Ke7 {[%clk 0:02:50]} 15. Be2 {[%clk 0:02:42]}  a5 {[%clk 0:02:39]} 16. h4 {[%clk 0:02:30]}  b5 {[%clk 0:02:29]} 17. f4 {[%clk 0:02:23]}  a4 {[%clk 0:02:24]} 18. a3 {[%clk 0:02:23]}  Nc5 {[%clk 0:02:22]} 19. Bf3 {[%clk 0:02:20]}  Rhd8 {[%clk 0:02:14]} 20. Rhd1 {[%clk 0:02:14]}  Rxd4 {[%clk 0:02:13]} 21. Rxd4 {[%clk 0:02:13]}  Bg4 {[%clk 0:02:08]} 22. Bg2 {[%clk 0:02:10]}  Ne6 {[%clk 0:02:08]} 23. Rd1 {[%clk 0:02:06]}  Nxf4 {[%clk 0:02:08]} 24. Bh1 {[%clk 0:02:07]}  Bxd1 {[%clk 0:02:08]} 0-1


[Site "https://www.chess.com"]

[Event "Titled Tuesday Blitz June 8 2021"]
[White "Nozdrachev, Leonid"]
[Black "Kollars, Dmitrij"]
[WhiteFideId "24113433"]
[BlackFideId "12909572"]
[WhiteElo "2221"]
[BlackElo "2576"]
[Result "0-1"]
[Round "01"]
[TimeControl "180+1"]
[Date "2021.06.08"]
[WhiteClock "0:00:03"]
[BlackClock "0:00:27"]

1. e4 {[%clk 0:02:56]}  e5 {[%clk 0:02:59]} 2. Nf3 {[%clk 0:02:55]}  Nc6 {[%clk 0:03:00]} 3. Bc4 {[%clk 0:02:54]}  Nf6 {[%clk 0:03:00]} 4. d3 {[%clk 0:02:52]}  Bc5 {[%clk 0:03:00]} 5. Nc3 {[%clk 0:02:48]}  d6 {[%clk 0:02:59]} 6. Be3 {[%clk 0:02:46]}  Bb6 {[%clk 0:02:59]} 7. h3 {[%clk 0:02:39]}  O-O {[%clk 0:02:58]} 8. O-O {[%clk 0:02:38]}  Na5 {[%clk 0:02:55]} 9. Bb5 {[%clk 0:02:33]}  c6 {[%clk 0:02:53]} 10. Ba4 {[%clk 0:02:32]}  Bxe3 {[%clk 0:02:52]} 11. fxe3 {[%clk 0:02:33]}  b5 {[%clk 0:02:53]} 12. Bb3 {[%clk 0:02:32]}  h6 {[%clk 0:02:51]} 13. Nh4 {[%clk 0:02:24]}  Nxb3 {[%clk 0:02:40]} 14. axb3 {[%clk 0:02:22]}  a5 {[%clk 0:02:40]} 15. Qf3 {[%clk 0:02:18]}  Re8 {[%clk 0:02:34]} 16. Kh1 {[%clk 0:02:12]}  Ra7 {[%clk 0:02:32]} 17. Nf5 {[%clk 0:02:07]}  Bxf5 {[%clk 0:02:31]} 18. Qxf5 {[%clk 0:02:06]}  b4 {[%clk 0:02:27]} 19. Ne2 {[%clk 0:01:55]}  d5 {[%clk 0:02:27]} 20. Ng3 {[%clk 0:01:52]}  Re6 {[%clk 0:02:26]} 21. Rad1 {[%clk 0:01:45]}  Qe7 {[%clk 0:02:14]} 22. Qf3 {[%clk 0:01:29]}  g6 {[%clk 0:02:13]} 23. exd5 {[%clk 0:01:07]}  cxd5 {[%clk 0:02:14]} 24. Qf2 {[%clk 0:01:00]}  Rc7 {[%clk 0:02:10]} 25. Rd2 {[%clk 0:00:55]}  Kg7 {[%clk 0:01:57]} 26. d4 {[%clk 0:00:55]}  exd4 {[%clk 0:01:47]} 27. Rxd4 {[%clk 0:00:41]}  Rxe3 {[%clk 0:01:33]} 28. Rf4 {[%clk 0:00:40]}  Rc6 {[%clk 0:01:34]} 29. Kh2 {[%clk 0:00:26]}  Rce6 {[%clk 0:01:30]} 30. Qd2 {[%clk 0:00:20]}  Rxg3 {[%clk 0:01:08]} 31. Kxg3 {[%clk 0:00:21]}  Ne4+ {[%clk 0:01:08]} 32. Rxe4 {[%clk 0:00:20]}  dxe4 {[%clk 0:01:09]} 33. Qd4+ {[%clk 0:00:18]}  f6 {[%clk 0:01:00]} 34. c4 {[%clk 0:00:14]}  Rd6 {[%clk 0:00:55]} 35. Qf2 {[%clk 0:00:07]}  Qe5+ {[%clk 0:00:55]} 36. Qf4 {[%clk 0:00:07]}  Rd3+ {[%clk 0:00:55]} 37. Kh2 {[%clk 0:00:06]}  Qxf4+ {[%clk 0:00:55]} 38. Rxf4 {[%clk 0:00:06]}  f5 {[%clk 0:00:56]} 39. Rf1 {[%clk 0:00:06]}  Kf6 {[%clk 0:00:48]} 40. g4 {[%clk 0:00:06]}  Ke5 {[%clk 0:00:48]} 41. gxf5 {[%clk 0:00:05]}  gxf5 {[%clk 0:00:49]} 42. Rc1 {[%clk 0:00:05]}  Kd6 {[%clk 0:00:49]} 43. Kg2 {[%clk 0:00:05]}  f4 {[%clk 0:00:48]} 44. Re1 {[%clk 0:00:03]}  Ke5 {[%clk 0:00:45]} 45. Rc1 {[%clk 0:00:03]}  Rd2+ {[%clk 0:00:41]} 46. Kf1 {[%clk 0:00:03]}  Kd6 {[%clk 0:00:41]} 47. Re1 {[%clk 0:00:02]}  e3 {[%clk 0:00:36]} 48. Re2 {[%clk 0:00:03]}  Rd3 {[%clk 0:00:35]} 49. Kg2 {[%clk 0:00:02]}  Rxb3 {[%clk 0:00:27]} 50. Kf3 {[%clk 0:00:03]}  Kc5 {[%clk 0:00:27]} 51. Kxf4 {[%clk 0:00:03]}  Kxc4 {[%clk 0:00:27]} 52. Kg4 {[%clk 0:00:02]}  a4 {[%clk 0:00:26]} 53. Kf3 {[%clk 0:00:01]}  a3 {[%clk 0:00:26]} 54. bxa3 {[%clk 0:00:01]}  bxa3 {[%clk 0:00:27]} 55. Ra2 {[%clk 0:00:01]}  Rc3 {[%clk 0:00:26]} 56. Ra1 {[%clk 0:00:01]}  Kb3 {[%clk 0:00:27]} 57. Rb1+ {[%clk 0:00:02]}  Kc2 {[%clk 0:00:27]} 58. Rb8 {[%clk 0:00:03]}  a2 {[%clk 0:00:27]} 59. Ra8 {[%clk 0:00:03]}  Kb2 {[%clk 0:00:28]} 60. Ke2 {[%clk 0:00:03]}  Ra3 {[%clk 0:00:27]} 61. Rb8+ {[%clk 0:00:03]}  Rb3 {[%clk 0:00:27]} 0-1


[Site "https://www.chess.com"]